bitfinex-derivatives/quotes_SOLF0:USTF0_20250903
["timestamp","ask_amount","ask_price","bid_price","bid_amount"]
[1756868496333,7.68,211.38,211.32,1.72055935]
[1756868497326,1.72055935,211.4,211.33,0.03550074]
[1756868497520,5.29384277,211.42,211.33,0.03550074]
[1756868497521,1.72055935,211.38,211.33,0.03550074]
[1756868497726,1.72055935,211.36,211.33,0.03550074]
[1756868497930,7.68,211.35,211.33,0.03550074]
[1756868498323,1.72055935,211.36,211.33,0.03550074]
[1756868498529,7.68,211.35,211.33,0.03550074]
[1756868498730,1.72055935,211.36,211.33,0.03550074]
[1756868499131,7.68,211.35,211.33,0.03550074]
[1756868499332,1.72055935,211.36,211.33,0.03550074]
[1756868499530,1.72055935,211.37,211.33,0.03550074]
[1756868499730,7.68,211.36,211.33,0.03550074]
[1756868499933,1.72055935,211.37,211.33,0.03550074]
[1756868500435,7.68,211.36,211.33,0.03550074]
[1756868500637,7.68,211.34,211.25,1.72055935]
[1756868501334,7.68,211.34,211.23,2.03]
[1756868501335,7.68,211.34,211.27,1.72055935]
[1756868502035,0.03306088,211.33,211.27,1.72055935]
[1756868503038,0.03306088,211.33,211.26,2.05]
[1756868503236,7.52306088,211.33,211.28,3.77055935]
[1756868503635,7.49,211.33,211.28,3.77055935]
[1756868503935,7.52560932,211.33,211.28,3.77055935]
[1756868504339,0.03560932,211.33,211.28,3.77055935]
[1756868504641,7.52560932,211.33,211.28,3.77055935]
[1756868505844,7.49,211.32,211.28,3.77055935]
[1756868507342,0.03560932,211.33,211.27,1.72055935]
[1756868507550,7.49,211.32,211.27,1.72055935]
[1756868507746,7.49,211.33,211.27,1.72055935]
[1756868507942,0.03161096,211.32,211.26,1.72055935]
[1756868508149,7.52161096,211.32,211.26,1.72055935]
[1756868509145,7.49,211.28,211.16,2.05]
[1756868509350,7.49,211.28,211.2,3.77055935]
[1756868509850,0.03146057,211.26,211.2,3.77055935]
[1756868510842,7.52146057,211.26,211.2,2.05]
[1756868511046,7.52146057,211.26,211.19,1.72055935]
[1756868511443,0.03146057,211.26,211.2,2.05]
[1756868511644,0.03146057,211.26,211.22,2.68981958]
[1756868511946,0.03146057,211.26,211.23,2.05]
[1756868514956,0.03146057,211.26,211.2,2.05]
[1756868519661,0.03146057,211.26,211.23,2.05]
[1756868519961,0.03146057,211.26,211.25,4.73981958]
[1756868520759,0.03146057,211.26,211.25,2.05]
[1756868521767,0.03146057,211.26,211.17,8.22877622]
[1756868521768,0.03146057,211.26,211.21,2.05]
[1756868521961,0.03146057,211.26,211.2,2.68981958]
[1756868522364,0.03146057,211.26,211.2,4.73981958]
[1756868522757,0.03146057,211.26,211.2,2.05]
[1756868523666,0.03146057,211.26,211.16,120.34981958]
[1756868523866,7.49,211.25,211.17,2.05]
[1756868525267,7.49,211.25,211.14,175.44697665]
[1756868525865,0.03468797,211.22,211.16,2.68981958]
[1756868526064,0.03468797,211.22,211.14,173.39697665]
[1756868526065,0.03468797,211.22,211.21,2.06]
[1756868526466,0.03468797,211.22,211.15,2.06]
[1756868526667,0.03468797,211.22,211.16,2.68981958]
[1756868527369,0.03468797,211.22,211.16,4.74981958]
[1756868527968,0.03468797,211.22,211.17,2.06]
[1756868528468,0.03468797,211.22,211.16,2.68981958]
[1756868529074,0.03468797,211.22,211.17,2.06]
[1756868529574,0.03468797,211.22,211.16,2.68981958]
[1756868529774,0.03468797,211.22,211.17,2.06]
[1756868529974,0.03468797,211.22,211.16,2.68981958]
[1756868530473,0.03468797,211.22,211.17,2.06]
[1756868531074,0.03468797,211.22,211.16,2.68981958]
[1756868532470,0.03468797,211.22,211.17,2.07]
[1756868532672,0.03468797,211.22,211.19,2.68981958]
[1756868532877,0.03468797,211.22,211.2,2.07]
[1756868533077,0.03468797,211.22,211.19,2.68981958]
[1756868533279,0.03468797,211.22,211.2,2.07]
[1756868533674,0.03468797,211.22,211.19,2.68981958]
[1756868534378,0.03468797,211.22,211.2,2.07]
[1756868534578,0.03468797,211.22,211.19,2.68981958]
[1756868535877,0.03468797,211.22,211.2,2.07]
[1756868536581,0.03468797,211.22,211.17,2.07]
[1756868536975,0.03468797,211.22,211.16,2.68981958]
[1756868537380,0.03468797,211.22,211.17,2.07]
[1756868537680,0.03468797,211.22,211.16,2.07]
[1756868541079,0.03468797,211.22,211.18,2.68981958]
[1756868541678,0.03468797,211.22,211.19,2.07]
[1756868542081,0.03468797,211.22,211.18,2.07]
[1756868542876,0.03468797,211.22,211.17,2.68981958]
[1756868543084,0.03468797,211.22,211.18,2.07]
[1756868543385,0.03468797,211.22,211.17,2.68981958]
[1756868543581,7.65468797,211.22,211.18,2.07]
[1756868543980,7.62,211.21,211.14,178.15679623]
[1756868548288,7.62,211.21,211.14,175.46697665]
[1756868552402,0.03468797,211.22,211.15,2.07]
[1756868552589,0.03468797,211.22,211.14,173.39697665]
[1756868552590,0.03468797,211.22,211.2,2.07]
[1756868553402,0.03468797,211.22,211.21,4.75981958]
[1756868555700,12.91384277,211.32,211.22,2.03]
[1756868555896,12.91384277,211.32,211.24,2.68981958]
[1756868555897,7.62,211.32,211.24,2.68981958]
[1756868556302,7.62,211.32,211.25,2.03]
[1756868556699,5.29384277,211.35,211.25,2.03]
[1756868556901,7.62,211.36,211.28,2.03]
[1756868557105,7.62,211.36,211.28,4.71981958]
[1756868558410,5.29384277,211.39,211.29,2.03]
[1756868558806,12.91384277,211.4,211.29,2.03]
[1756868559001,7.62,211.4,211.29,2.03]
[1756868559309,7.62,211.4,211.3,2.68981958]
[1756868559610,7.62,211.4,211.32,0.03050049]
[1756868559809,7.62,211.4,211.33,4.63610226]
[1756868560008,7.62,211.4,211.34,4.63610226]
[1756868560209,7.62,211.41,211.35,4.63610226]
[1756868560406,7.62,211.41,211.32,0.03050049]
[1756868560603,7.62,211.41,211.33,4.63355467]
[1756868560799,7.62,211.41,211.34,4.66581237]
[1756868561006,7.62,211.41,211.35,4.63355467]
[1756868561311,7.62,211.41,211.34,0.0322577]
[1756868561508,7.62,211.41,211.35,4.63127986]
[1756868561709,7.62,211.41,211.34,0.0322577]
[1756868561910,7.62,211.41,211.35,4.63127986]
[1756868562104,7.62,211.41,211.34,0.0322577]
[1756868562301,7.62,211.41,211.35,4.63099527]
[1756868562508,7.62,211.41,211.36,6.64099527]
[1756868562707,7.53,211.44,211.37,2.01]
[1756868563310,7.53,211.44,211.38,4.62838686]
[1756868563509,7.53,211.44,211.34,2.01]
[1756868563701,7.53,211.44,211.35,4.62546976]
[1756868563903,7.53,211.45,211.39,0.03303702]
[1756868567314,7.53,211.45,211.39,4.7328566]
[1756868568513,7.53,211.5,211.39,4.7328566]
[1756868569316,7.53,211.5,211.4,4.66546599]
[1756868569517,7.53,211.5,211.39,4.7328566]
[1756868569713,7.53,211.5,211.4,4.66220105]
[1756868569913,7.53,211.5,211.39,4.7328566]
[1756868570113,7.53,211.5,211.4,4.66220105]
[1756868570316,7.53,211.5,211.39,4.7328566]
[1756868573621,7.53,211.5,211.42,1.71823373]
[1756868574215,7.53,211.5,211.44,0.03134304]
[1756868576316,7.53,211.48,211.44,0.03134304]
[1756868576718,1.71823373,211.49,211.44,0.03134304]
[1756868577121,7.53,211.51,211.44,0.03134304]
[1756868577312,7.53,211.48,211.44,0.03134304]
[1756868577715,1.71823373,211.49,211.44,0.03134304]
[1756868578518,7.53,211.48,211.44,0.03134304]
[1756868579217,1.71823373,211.49,211.44,0.03134304]
[1756868579713,7.53,211.48,211.44,0.03134304]
[1756868579913,1.71823373,211.49,211.44,0.03134304]
[1756868580113,7.53,211.48,211.44,0.03134304]
[1756868580321,1.71823373,211.49,211.44,0.03134304]
[1756868580523,7.53,211.48,211.44,0.03134304]
[1756868580924,1.71823373,211.49,211.44,0.03134304]
[1756868581218,7.53,211.48,211.44,0.03134304]
[1756868581418,1.71823373,211.49,211.44,0.03134304]
[1756868581614,7.53,211.48,211.44,0.03134304]
[1756868581813,1.71823373,211.49,211.44,0.03134304]
[1756868582217,7.53,211.48,211.44,0.03134304]
[1756868582926,1.71823373,211.49,211.44,0.03134304]
[1756868583128,7.53,211.48,211.44,0.03134304]
[1756868583615,1.71823373,211.49,211.44,0.03134304]
[1756868583822,117.42,211.51,211.44,1.74957677]
[1756868584023,7.53,211.5,211.44,1.74957677]
[1756868585617,7.53,211.5,211.44,0.03134304]
[1756868585928,119.13823373,211.51,211.44,0.03134304]
[1756868585929,7.53,211.48,211.44,0.03134304]
[1756868586720,1.71823373,211.49,211.44,0.03134304]
[1756868586915,7.53,211.48,211.44,0.03134304]
[1756868587318,7.53,211.5,211.44,0.03134304]
[1756868588326,7.53,211.5,211.47,1.71823373]
[1756868588925,7.53,211.5,211.47,3.72823373]
[1756868590727,7.53,211.5,211.47,1.71823373]
[1756868591628,117.38,211.53,211.47,1.71823373]
[1756868591629,7.77,211.53,211.47,1.71823373]
[1756868592720,7.77,211.53,211.47,3.73823373]
[1756868592923,7.77,211.53,211.49,1.71823373]
[1756868593124,7.77,211.54,211.44,0.03134304]
[1756868593426,7.77,211.51,211.47,0.03081847]
[1756868593828,7.77,211.51,211.45,3.73823373]
[1756868594530,29.24,211.54,211.46,0.03262513]
[1756868594727,7.77,211.53,211.49,3.73823373]
[1756868595632,7.77,211.54,211.49,0.03182742]
[1756868596025,1.71823373,211.55,211.49,0.03182742]
[1756868596336,7.77,211.54,211.49,0.03182742]
[1756868596528,1.71823373,211.55,211.49,0.03182742]
[1756868596732,7.77,211.54,211.49,0.03182742]
[1756868596936,7.77,211.56,211.49,0.03182742]
[1756868597236,7.77,211.56,211.49,1.75006115]
[1756868597436,7.77,211.56,211.5,4.66377534]
[1756868597639,7.77,211.56,211.49,1.75006115]
[1756868597838,7.77,211.56,211.5,4.66387884]
[1756868598038,7.77,211.56,211.49,1.75006115]
[1756868598234,7.77,211.56,211.5,4.66378416]
[1756868598439,7.77,211.56,211.49,1.75006115]
[1756868598737,7.0120765,211.59,211.51,1.71823373]
[1756868598738,7.77,211.58,211.51,1.71823373]
[1756868599734,7.77,211.58,211.49,3.77006115]
[1756868599938,9.48823373,211.58,211.5,4.67245997]
[1756868600137,9.48823373,211.58,211.51,4.67245997]
[1756868600335,7.77,211.58,211.49,1.75006115]
[1756868600542,9.48823373,211.58,211.5,4.67310924]
[1756868600740,9.48823373,211.58,211.51,4.67310924]
[1756868600945,9.48823373,211.58,211.49,1.75006115]
[1756868601240,9.48823373,211.58,211.5,4.67289816]
[1756868601434,14.7820765,211.58,211.51,4.67289816]
[1756868601640,14.7820765,211.58,211.52,4.67289816]
[1756868601836,13.06384277,211.58,211.51,1.71823373]
[1756868602032,119.62384277,211.59,211.53,1.71823373]
[1756868602239,114.33,211.59,211.49,0.03182742]
[1756868602443,7.77,211.57,211.5,4.67696228]
[1756868602740,1.71823373,211.58,211.52,0.0300893]
[1756868602940,1.71823373,211.58,211.53,4.67696228]
[1756868603242,7.77,211.57,211.52,0.0300893]
[1756868603445,1.71823373,211.58,211.53,4.67656189]
[1756868603637,7.77,211.57,211.54,4.67656189]
[1756868603833,1.71823373,211.58,211.52,0.0300893]
[1756868604038,7.77,211.57,211.53,4.67850218]
[1756868604340,7.77,211.57,211.54,4.67850218]
[1756868604541,1.71823373,211.58,211.52,0.0300893]
[1756868604740,1.71823373,211.58,211.53,4.67812798]
[1756868605037,1.71823373,211.58,211.52,0.0300893]
[1756868605241,7.77,211.57,211.53,4.67950332]
[1756868605437,9.48823373,211.58,211.52,0.0300893]
[1756868605738,7.77,211.55,211.52,0.0300893]
[1756868606437,7.0120765,211.56,211.52,0.0300893]
[1756868606839,7.77,211.55,211.52,0.0300893]
[1756868607241,1.71823373,211.56,211.52,0.0300893]
[1756868608042,7.77,211.55,211.52,0.0300893]
[1756868608242,7.0120765,211.56,211.52,0.0300893]
[1756868608438,13.06384277,211.55,211.52,0.0300893]
[1756868608743,7.77,211.54,211.52,0.0300893]
[1756868609346,5.29384277,211.55,211.52,0.0300893]
[1756868609540,7.77,211.54,211.52,0.0300893]
[1756868609746,5.29384277,211.55,211.52,0.0300893]
[1756868609945,7.77,211.54,211.52,0.0300893]
[1756868610346,7.77,211.53,211.52,0.0300893]
[1756868611243,7.93179296,211.57,211.52,0.0300893]
[1756868611244,5.29384277,211.54,211.52,0.0300893]
[1756868611547,5.29384277,211.58,211.53,3.73823373]
[1756868611848,5.29384277,211.59,211.53,3.73823373]
[1756868612150,7.77,211.59,211.53,3.77032746]
[1756868614547,7.77,211.6,211.55,1.71823373]
[1756868614753,5.29384277,211.61,211.53,0.03209373]
[1756868614754,7.77,211.57,211.53,0.03209373]
[1756868615155,1.71823373,211.58,211.53,0.03209373]
[1756868615751,7.77,211.57,211.53,0.03209373]
[1756868616147,1.71823373,211.56,211.53,0.03209373]
[1756868616352,7.77,211.55,211.53,0.03209373]
[1756868616757,1.71823373,211.56,211.53,0.03209373]
[1756868617054,7.77,211.55,211.53,0.03209373]
[1756868617260,7.77,211.53,211.44,1.71823373]
[1756868617560,7.77,211.51,211.44,1.71823373]
[1756868618259,7.77,211.49,211.34,2.05]
[1756868618461,7.80085593,211.5,211.44,1.71823373]
[1756868618663,7.77,211.5,211.44,1.71823373]
[1756868619063,7.80216326,211.49,211.44,3.76823373]
[1756868619865,7.77,211.48,211.44,3.76823373]
[1756868621268,7.80216326,211.49,211.41,2.05]
[1756868621570,7.59,211.47,211.38,1.71823373]
[1756868621867,1.71823373,211.46,211.39,4.44200273]
[1756868622080,7.59,211.45,211.38,1.71823373]
[1756868622261,7.59,211.45,211.37,2.04]
[1756868622465,1.71823373,211.44,211.37,2.04]
[1756868622871,7.59,211.43,211.37,2.04]
[1756868623173,7.62358305,211.43,211.37,2.04]
[1756868624668,7.62358305,211.43,211.34,1.71823373]
[1756868624861,1.71823373,211.42,211.34,1.71823373]
[1756868625767,7.59,211.39,211.33,2.04]
[1756868626475,0.0355289,211.38,211.32,1.71823373]
[1756868626674,7.6255289,211.38,211.3,1.71823373]
[1756868627069,7.59,211.38,211.3,1.71823373]
[1756868627368,0.0345794,211.36,211.3,1.71823373]
[1756868627573,0.0345794,211.36,211.32,1.71823373]
[1756868627973,0.0345794,211.36,211.33,2.04]
[1756868628570,0.0345794,211.36,211.34,1.71823373]
[1756868628768,0.0345794,211.36,211.35,2.04]
[1756868628967,0.0345794,211.36,211.35,2.52]
[1756868631467,7.59,211.46,211.35,2.52]
[1756868631667,7.59,211.46,211.4,1.71823373]
[1756868632469,7.59,211.46,211.38,1.71823373]
[1756868632670,7.59,211.44,211.41,0.02992741]
[1756868633069,1.71823373,211.45,211.41,0.02992741]
[1756868633476,7.59,211.49,211.41,0.02992741]
[1756868633676,1.71823373,211.47,211.41,0.02992741]
[1756868634174,7.59,211.46,211.41,0.02992741]
[1756868636174,7.59,211.47,211.41,0.02992741]
[1756868636580,124.85,211.47,211.41,0.02992741]
[1756868640386,7.59,211.47,211.41,0.02992741]
[1756868642084,7.59,211.44,211.41,0.02992741]
[1756868642384,7.59,211.42,211.41,0.02992741]
[1756868642880,7.59,211.42,211.33,2.04]
[1756868644476,0.03171046,211.4,211.33,2.04]
[1756868644682,7.59,211.39,211.29,2.07]
[1756868657195,7.59,211.39,211.32,2.08]
[1756868659002,0.0320116,211.38,211.32,2.08]
[1756868663005,7.33,211.37,211.28,4.76599391]
[1756868663204,7.33,211.37,211.28,2.08]
[1756868664004,0.03084493,211.35,211.28,2.08]
[1756868666504,0.03084493,211.35,211.29,2.68599391]
[1756868666703,0.03084493,211.35,211.3,2.08]
[1756868666896,0.03084493,211.35,211.29,2.68599391]
[1756868667102,0.03084493,211.35,211.3,2.08]
[1756868667404,0.03084493,211.35,211.29,2.68599391]
[1756868667598,0.03084493,211.35,211.3,2.08]
[1756868668103,0.03084493,211.35,211.29,2.68599391]
[1756868668897,0.03084493,211.35,211.3,2.08]
[1756868669102,0.03084493,211.35,211.29,2.68599391]
[1756868669302,0.03084493,211.35,211.3,2.08]
[1756868669496,0.03084493,211.35,211.29,2.68599391]
[1756868669703,0.03084493,211.35,211.3,2.08]
[1756868670405,0.03084493,211.35,211.29,2.68599391]
[1756868670602,0.03084493,211.35,211.3,2.08]
[1756868671001,0.03084493,211.35,211.29,2.68599391]
[1756868671207,0.03084493,211.35,211.3,2.08]
[1756868672111,7.33,211.48,211.33,2.08]
[1756868672312,7.33,211.48,211.39,2.08]
[1756868672611,7.33,211.48,211.41,2.08]
[1756868672813,7.33,211.48,211.42,7.36854163]
[1756868673007,7.33,211.48,211.43,4.68254772]
[1756868673201,7.33,211.48,211.44,4.68254772]
[1756868673407,7.33,211.48,211.45,4.68254772]
[1756868673610,7.93179296,211.55,211.43,2.11389329]
[1756868673819,7.33,211.54,211.44,4.58061003]
[1756868674110,7.33,211.54,211.43,2.11389329]
[1756868674111,7.33,211.54,211.45,4.58061003]
[1756868674310,7.33,211.54,211.42,2.68599391]
[1756868674612,7.33,211.54,211.47,0.03181183]
[1756868680815,7.33,211.54,211.48,4.57025531]
[1756868681113,7.33,211.54,211.47,0.03181183]
[1756868683215,7.3,211.52,211.47,0.03181183]
[1756868687519,7.3,211.54,211.47,0.03181183]
[1756868687921,7.3,211.54,211.44,2.07]
[1756868688123,7.3,211.54,211.48,0.03242011]
[1756868688519,9.98599391,211.54,211.48,0.03242011]
[1756868688716,2.68599391,211.51,211.48,0.03242011]
[1756868688916,7.3,211.5,211.37,4.78599391]
[1756868689223,7.3,211.5,211.38,4.56082841]
[1756868689424,9.98599391,211.5,211.39,4.56082841]
[1756868689622,9.98599391,211.5,211.4,4.56082841]
[1756868689822,9.98599391,211.5,211.37,4.78599391]
[1756868690124,9.98599391,211.5,211.38,4.56070038]
[1756868690326,9.98599391,211.5,211.39,4.56070038]
[1756868690525,9.98599391,211.5,211.4,4.56070038]
[1756868690724,9.98599391,211.5,211.37,4.78599391]
[1756868690920,7.33211506,211.47,211.38,4.56080417]
[1756868691125,7.33211506,211.47,211.39,4.56080417]
[1756868691325,7.33211506,211.47,211.37,4.78599391]
[1756868691624,7.33211506,211.47,211.38,4.56117396]
[1756868691824,7.33211506,211.47,211.39,4.56117396]
[1756868692025,7.33211506,211.47,211.37,4.78599391]
[1756868692225,7.33211506,211.47,211.38,4.56117441]
[1756868692421,7.33211506,211.47,211.39,4.56117441]
[1756868692625,7.33211506,211.47,211.37,2.1]
[1756868692821,7.33211506,211.47,211.38,4.56186583]
[1756868693023,7.33211506,211.47,211.37,2.1]
[1756868693221,7.33211506,211.47,211.38,4.56185198]
[1756868693423,7.33211506,211.47,211.37,2.1]
[1756868693619,7.33211506,211.47,211.38,4.56212912]
[1756868693928,7.33211506,211.47,211.37,2.1]
[1756868694130,7.33211506,211.47,211.38,4.56212912]
[1756868694428,7.33211506,211.47,211.37,2.1]
[1756868694628,7.33211506,211.47,211.38,4.56224413]
[1756868694829,7.33211506,211.47,211.37,2.1]
[1756868695030,7.33211506,211.47,211.38,4.56224413]
[1756868695328,7.33211506,211.47,211.37,2.1]
[1756868695529,9.051033,211.47,211.39,1.71891794]
[1756868701240,7.3,211.42,211.35,1.71891794]
[1756868701435,7.3,211.42,211.36,4.56545752]
[1756868701635,1.71891794,211.43,211.37,4.56545752]
[1756868701935,7.3,211.42,211.35,1.71891794]
[1756868702135,7.33296998,211.42,211.36,4.56545752]
[1756868702336,7.33296998,211.42,211.35,1.71891794]
[1756868702337,7.3,211.41,211.37,4.56545752]
[1756868702536,7.3,211.41,211.35,1.71891794]
[1756868702733,7.3,211.41,211.36,4.56634176]
[1756868702934,0.03296998,211.42,211.37,4.56634176]
[1756868703134,7.33296998,211.42,211.35,1.71891794]
[1756868703433,0.03296998,211.42,211.37,3.81891794]
[1756868703634,0.03296998,211.42,211.41,3.81891794]
[1756868703846,7.3,211.46,211.42,2.1]
[1756868704443,7.3,211.46,211.41,1.71891794]
[1756868704444,7.3,211.48,211.41,1.71891794]
[1756868705345,0.03304463,211.47,211.41,1.71891794]
[1756868706242,0.03304463,211.47,211.4,1.71891794]
[1756868706447,7.3,211.46,211.4,1.71891794]
[1756868707152,7.3,211.44,211.36,1.71891794]
[1756868707345,7.3,211.44,211.37,4.46877546]
[1756868707542,7.3,211.44,211.38,4.46877546]
[1756868707842,1.75234463,211.43,211.34,3.82891794]
[1756868708042,1.71891794,211.41,211.35,4.46893017]
[1756868708245,0.03342669,211.43,211.36,4.46893017]
[1756868708444,9.01891794,211.41,211.32,1.71891794]
[1756868708750,7.3,211.38,211.3,2.11]
[1756868708947,7.3,211.38,211.31,4.33616682]
[1756868709148,7.3,211.38,211.32,4.33549356]
[1756868709352,0.03218456,211.36,211.3,2.11]
[1756868709553,0.03218456,211.36,211.32,2.11]
[1756868709946,7.3,211.38,211.32,2.11]
[1756868710154,0.03064537,211.36,211.32,2.11]
[1756868710752,0.03064537,211.36,211.31,1.71891794]
[1756868711052,0.03064537,211.36,211.35,3.82891794]
[1756868711552,7.3,211.43,211.35,4.30891794]
[1756868711746,0.03258463,211.38,211.37,3.84891794]
[1756868713849,7.3,211.43,211.37,3.84891794]
[1756868713850,7.14,211.48,211.37,6.53640744]
[1756868714146,7.14,211.48,211.42,1.71891794]
[1756868714853,7.14,211.52,211.44,1.71891794]
[1756868715047,7.14,211.52,211.46,3.84891794]
[1756868716742,7.14,211.52,211.46,2.13]
[1756868716945,7.14,211.52,211.46,3.84891794]
[1756868717344,7.14,211.52,211.44,1.71891794]
[1756868717541,1.71891794,211.49,211.43,0.03015906]
[1756868717945,1.71891794,211.47,211.43,0.03015906]
[1756868718142,7.14,211.44,211.43,0.03015906]
[1756868721549,7.14,211.5,211.43,2.16015906]
[1756868721849,8.85891794,211.5,211.43,2.16015906]
[1756868722654,7.14,211.5,211.43,3.879077]
[1756868722956,291.46,211.55,211.45,3.84891794]
[1756868722957,7.14,211.54,211.45,3.84891794]
[1756868723653,7.14,211.54,211.47,1.75294843]
[1756868724550,7.14,211.54,211.48,2.13]
[1756868728057,7.14,211.54,211.49,3.81891794]
[1756868728452,7.14,211.54,211.5,2.1]
[1756868728649,125.91891794,211.58,211.5,2.1]
[1756868729158,125.91891794,211.58,211.52,0.03187497]
[1756868730956,8.85891794,211.58,211.52,0.03187497]
[1756868731260,124.18,211.58,211.52,0.03187497]
[1756868732156,7.14,211.58,211.52,0.03187497]
[1756868733064,1.71891794,211.55,211.52,0.03187497]
[1756868733259,7.14,211.54,211.52,0.03187497]
[1756868733457,117.02,211.6,211.52,0.03187497]
[1756868733458,1.71891794,211.53,211.52,0.03187497]
[1756868733657,8.85891794,211.53,211.52,0.03187497]
[1756868736060,8.85891794,211.53,211.43,1.71891794]
[1756868736260,7.14,211.49,211.43,1.71891794]
[1756868737761,7.17049243,211.48,211.43,3.84891794]
[1756868738056,0.03049243,211.48,211.47,3.84891794]
[1756868742156,0.03049243,211.48,211.45,1.71891794]
[1756868743367,0.03049243,211.48,211.46,2.14]
[1756868744467,0.03049243,211.48,211.45,1.71891794]
[1756868744666,0.03049243,211.48,211.47,3.85891794]
[1756868746761,0.03049243,211.48,211.47,8.16183933]
[1756868746963,0.03049243,211.48,211.47,3.85891794]
[1756868747768,0.03049243,211.48,211.47,1.71891794]
[1756868747964,0.03049243,211.48,211.45,1.71891794]
[1756868749470,0.03049243,211.48,211.45,3.85891794]
[1756868750266,0.03049243,211.48,211.46,2.14]
[1756868750666,0.03049243,211.48,211.45,1.71891794]
[1756868750872,0.03049243,211.48,211.46,2.14]
[1756868753368,0.03049243,211.48,211.45,1.71891794]
[1756868753570,0.03049243,211.48,211.46,2.14]
[1756868754368,0.03049243,211.48,211.45,1.71891794]
[1756868755169,0.03049243,211.48,211.47,2.14]
[1756868756075,0.03049243,211.48,211.44,2.14]
[1756868756374,0.03049243,211.48,211.45,4.31022779]
[1756868756575,0.03049243,211.48,211.44,2.14]
[1756868756969,7.53049243,211.48,211.44,2.14]
[1756868757172,7.5,211.47,211.44,2.14]
[1756868757373,7.5,211.47,211.39,2.14]
[1756868757668,7.5,211.47,211.4,4.312783]
[1756868757871,7.5,211.47,211.39,2.14]
[1756868758170,0.03080714,211.45,211.39,2.14]
[1756868759467,0.03080714,211.45,211.34,130.73102014]
[1756868759668,7.5,211.44,211.35,5.86259416]
[1756868759870,7.5,211.44,211.35,2.14]
[1756868760871,7.5,211.44,211.31,2.68393538]
[1756868761079,7.5,211.44,211.32,3.72301157]
[1756868761377,0.03025135,211.4,211.34,2.14]
[1756868765972,0.03025135,211.4,211.35,2.68393538]
[1756868766274,7.93179296,211.5,211.27,93.8002]
[1756868766275,7.5,211.5,211.4,2.14]
[1756868766479,7.5,211.5,211.43,2.14]
[1756868766680,2.68393538,211.57,211.43,2.14]
[1756868766880,116.98,211.55,211.43,2.14]
[1756868767072,7.5,211.51,211.43,2.14]
[1756868768181,0.03237588,211.49,211.43,2.14]
[1756868771882,7.85,211.48,211.38,2.68393538]
[1756868772188,7.85,211.48,211.36,4.82393538]
[1756868772383,7.85,211.48,211.36,2.14]
[1756868772583,2.68393538,211.46,211.36,2.14]
[1756868772790,7.85,211.43,211.36,2.14]
[1756868777795,7.85,211.43,211.33,2.14]
[1756868778590,0.03078828,211.4,211.33,2.14]
[1756868778795,0.03078828,211.4,211.34,3.71729125]
[1756868778996,0.03078828,211.4,211.33,2.14]
[1756868779195,0.03078828,211.4,211.34,3.71719551]
[1756868779396,0.03078828,211.4,211.33,2.14]
[1756868779591,0.03078828,211.4,211.34,3.71698648]
[1756868779792,0.03078828,211.4,211.33,2.14]
[1756868779992,0.03078828,211.4,211.34,3.71698648]
[1756868780192,0.03078828,211.4,211.33,2.14]
[1756868780391,7.88078828,211.4,211.33,2.14]
[1756868781699,0.03078828,211.4,211.33,2.14]
[1756868782495,0.03078828,211.4,211.35,2.68393538]
[1756868782995,0.03078828,211.4,211.36,2.14]
[1756868783395,0.03078828,211.4,211.38,2.68393538]
[1756868783597,0.03078828,211.4,211.39,2.14]
[1756868784495,7.85,211.49,211.39,2.14]
[1756868784697,7.85,211.49,211.42,2.14]
[1756868784895,7.85,211.54,211.42,2.14]
[1756868785101,7.85,211.54,211.45,2.14]
[1756868785697,7.85,211.54,211.47,0.0306395]
[1756868791704,7.85,211.54,211.48,2.14]
[1756868791900,7.85,211.61,211.48,2.14]
[1756868792099,7.85,211.59,211.48,2.14]
[1756868792804,7.85,211.59,211.51,0.03009457]
[1756868794005,7.85,211.59,211.51,2.17009457]
[1756868794206,7.85,211.63,211.56,2.68393538]